Cogmind - Beta 15 @@@ ROGUE MODE // 2025.05.14 @ 12:43:41 Player: cingulata Result: Smashed by cave-in Performance ------------- Evolutions (0) 0 Regions Visited (4) 800 Robots Destroyed (13) 65 Value Destroyed (264) 264 Prototype IDs (23) 460 Alien Tech Used (0) 0 Bonus (300) 300 TOTAL SCORE: 1889 Bonus ------- Aligned with FarCom 300 Cogmind --------- Core Integrity 0/250 Matter 214/300 Energy 250/250 System Corruption 6% Temperature Cool (48) Movement Treading (160) Location -9/Mines Parts ------- > --- POWER (1) -------- Ion Engine > --- PROPULSION (2) --- Light Treads Light Treads > --- UTILITY (2) ------ Large Storage Unit Targeting Computer > --- WEAPON (2) ------- (None) > --- INVENTORY (15) --- Ion Engine Light Ion Engine Light Ion Engine Improved Ion Engine Flight Unit Flight Unit Flight Unit Improved Terrain Scanner ECM Suite Light Assault Rifle Light Assault Rifle Peak State ------------ > --- POWER ------------ Ion Engine > --- PROPULSION ------- Light Treads Light Treads > --- UTILITY ---------- Large Storage Unit Improved Terrain Scanner > --- WEAPON ----------- YOLO Cannon > --- INVENTORY -------- Light Ion Engine Light Ion Engine Improved Ion Engine Light Treads Light Treads Flight Unit Flight Unit Flight Unit Targeting Computer ECM Suite Assault Rifle Assault Rifle Light Assault Rifle Light Assault Rifle Mining Laser [Rating: 28] Favorites ----------- Power Ion Engine Engine Ion Engine Propulsion Light Treads Treads Light Treads Utility Improved Terrain Scanner Device Improved Terrain Scanner Storage High-capacity Storage Unit Processor Targeting Computer Weapon Assault Rifle Energy Gun Particle Gun Energy Cannon Firepult Ballistic Gun Assault Rifle Special Weapon Mining Laser Build | -11 -10 -10 -10 -9 ------- Run | Yrd Mat Min Exi Min Slots Evolved . | . . . . . Power . | . . . . . Propulsion . | . . . . . Utility . | . . . . . Weapon . | . . . . . Parts Attached 25 | 8 5 3 5 4 Power 3 | 2 . . . 1 Engine 3 | 2 . . . 1 Core . | . . . . . Reactor . | . . . . . Propulsion 4 | 2 . 1 . 1 Treads 4 | 2 . 1 . 1 Leg . | . . . . . Wheel . | . . . . . Hover . | . . . . . Flight . | . . . . . Utility 7 | 2 2 . 2 1 Device 2 | 1 1 . . . Storage 4 | 1 1 . 2 . Processor 1 | . . . . 1 Hackware . | . . . . . Protection . | . . . . . Artifact . | . . . . . Weapon 11 | 2 3 2 3 1 Energy Gun 2 | . 2 . . . Energy Cannon 2 | . . . 2 . Ballistic Gun 6 | 2 . 2 1 1 Ballistic Cannon . | . . . . . Launcher . | . . . . . Special Weapon 1 | . 1 . . . Impact Weapon . | . . . . . Slashing Weapon . | . . . . . Piercing Weapon . | . . . . . Special Melee Weapon . | . . . . . Unidentified Prototypes . | . . . . . Parts Lost 4 | . . . . 4 Power . | . . . . . Propulsion 1 | . . . . 1 Utility . | . . . . . Weapon 3 | . . . . 3 Highest Loss Streak 2 | . . . . 2 To Critical Strikes . | . . . . . Average Backups 11 | 4 6 11 12 11 Power 2 | . 1 2 3 3 Propulsion 4 | 1 1 4 4 3 Utility 1 | . . 1 2 2 Weapon 2 | 1 2 2 3 2 Tool/Special . | . . . . . Unused Backups 12 | 3 . 2 2 5 Power 2 | . . . . 2 Propulsion 7 | 3 . 1 . 3 Utility 3 | . . 1 2 . Weapon . | . . . . . Tool/Special . | . . . . . Average Slot Usage (%) 99 | . 96 100 99 98 Engine 13 | . 12 14 14 14 Treads 27 | . 28 28 28 26 Device 12 | . 14 14 13 . Storage 14 | . 14 14 14 14 Processor 1 | . . . . 14 Ballistic Gun 25 | . 18 25 27 24 Special Weapon 1 | . 5 2 . 3 Peak Build Rating 28 | 9 9 10 28 8 Average Rating 9 | 4 8 9 9 7 On Entrance 7 | . 9 8 10 10 Naked Turns . | . . . . . Heaviest Build 52 | 14 52 50 50 28 Greatest Support 40 | 40 40 40 40 40 Greatest Overweight (x) 2 | 2 1 1 1 . Average Overweight (x) . | . . 1 . . Largest Inventory Capacity 35 | 8 20 20 35 15 Average Capacity 16 | 7 14 20 16 15 Most Carried 15 | 8 10 13 15 13 Average Carried 11 | 4 6 11 12 11 Final Capacity 20 | 8 20 20 15 15 Final Carried 13 | 4 8 13 13 11 Class Distribution -------------------- 94% | Mutant 5% | Scavenger-Mutant Dominant Class ---------------- Mutant | -10/Materials Mutant | -10/Mines Mutant | -10/Exiles Scavenger-Mutant | -9/Mines Resources | -11 -10 -10 -10 -9 ----------- Run | Yrd Mat Min Exi Min Matter Collected 754 | 244 91 231 . 188 Remotely . | . . . . . Salvage Created 310 | 28 126 35 . 121 Parts 26 | 3 13 6 . 4 Haulers Intercepted . | . . . . . Recyclers Shooed . | . . . . . Parts Field Recycled . | . . . . . Retrieved Matter . | . . . . . Parts Self-Destructed . | . . . . . Prevented . | . . . . . Kills | -11 -10 -10 -10 -9 ------- Run | Yrd Mat Min Exi Min Combat Hostiles Destroyed 11 | . 5 3 . 3 Guns 11 | . 5 3 . 3 Classes Destroyed 4 | 1 3 . . . Worker 1 | . 1 . . . Tunneler 1 | 1 . . . . Swarmer 6 | . 3 3 . . Grunt 5 | . 2 . . 3 Best Kill Streak 4 | 1 4 3 . 2 Combat Bots Only 3 | . 3 3 . 2 Max Kills in Single Turn 2 | 1 1 2 . 1 Gunslinging 1 | . . 1 . . Exploded . | . . . . . Melee . | . . . . . Uniques/NPCs Destroyed . | . . . . . Combat | -11 -10 -10 -10 -9 -------- Run | Yrd Mat Min Exi Min Hostile Shots Fired 85 | . 31 5 . 49 Missed 23 | . 8 3 . 12 Hits 62 | . 23 2 . 37 Projectile 62 | . 23 2 . 37 Critical Strikes 2 | . . . . 2 Damage Taken 1083 | . 267 17 . 799 Core 261 | . 14 8 . 239 Absorbed by Shields . | . . . . . Regen/Repaired (Parts) 30 | . 30 . . . Core Remaining (%) 100 | 100 . . . . Volleys Fired 79 | 4 18 22 . 35 Largest 2 | 1 2 2 . 2 Hottest 120 | 20 100 120 . 100 Shots Fired 116 | 4 30 25 . 57 Gun 77 | 4 24 5 . 44 Cannon . | . . . . . Launcher . | . . . . . Special 39 | . 6 20 . 13 Kinetic 77 | 4 24 5 . 44 Thermal 39 | . 6 20 . 13 Explosive . | . . . . . Electromagnetic . | . . . . . Robot Hit Streak 15 | 4 6 6 . 15 Robot Miss Streak 2 | . 2 . . 1 Penetration Max . | . . . . . Secondary Targets 5 | . 3 1 . 1 Max Gunslinging Chain 1 | . 1 1 . 1 Shots Hit Robots 62 | 4 16 3 . 39 Core Hits 21 | 2 7 3 . 9 Critical Kills . | . . . . . Critical Parts Destroyed 1 | . . . . 1 Critical Strikes 1 | . . . . 1 Destroy 1 | . . . . 1 Melee Attacks . | . . . . . Impact . | . . . . . Slashing . | . . . . . Piercing . | . . . . . Sneak Attacks . | . . . . . Combat Hostiles . | . . . . . Follow-up Attacks . | . . . . . Damage Inflicted 672 | 62 178 34 . 398 Guns 653 | 54 175 34 . 390 Cannons . | . . . . . Explosions . | . . . . . Melee . | . . . . . Ramming 19 | 8 3 . . 8 Kinetic 653 | 54 175 34 . 390 Thermal . | . . . . . Explosive . | . . . . . Electromagnetic . | . . . . . Impact . | . . . . . Slashing . | . . . . . Piercing . | . . . . . Highest Corruption . | . . . . . Average Corruption . | . . . . . Corruption Purged . | . . . . . Corruption Blocked . | . . . . . Overload Shots . | . . . . . Overflow Damage . | . . . . . Projectiles . | . . . . . Explosions . | . . . . . Melee . | . . . . . Knockbacks . | . . . . . Impact . | . . . . . Kinetic . | . . . . . Secondary . | . . . . . Self-Inflicted Damage . | . . . . . Shots . | . . . . . Rammed 9 | 5 1 1 . 2 Targets Rammed 10 | 5 2 1 . 2 Kicked . | . . . . . Crushed 1 | . 1 . . . Highest Temperature 84 | . 40 60 . 84 Average Temperature 25 | . 12 26 . 28 Received Heat Transfer 441 | . 111 . . 330 Siege Activations . | . . . . . Martial Activations . | . . . . . Shielding Activations . | . . . . . Robots Disrupted . | . . . . . Combat Hostiles . | . . . . . Robots Corrupted . | . . . . . Combat Hostiles . | . . . . . Parts Fried . | . . . . . Impact Corruptions . | . . . . . Robots Melted . | . . . . . Combat Hostiles . | . . . . . Parts Melted . | . . . . . Heat Transferred . | . . . . . Parts Sabotaged . | . . . . . Parts Stolen . | . . . . . Parts Stripped . | . . . . . Power Chain Reactions . | . . . . . Alert | -11 -10 -10 -10 -9 ------- Run | Yrd Mat Min Exi Min Maximum Alert Level . | . . . . . Low Security (%) 100 | 100 100 100 . 100 Level 1 . | . . . . . Level 2 . | . . . . . Level 3 . | . . . . . Level 4 . | . . . . . Level 5 . | . . . . . High Security . | . . . . . Max Security . | . . . . . Peak Influence 70 | . 65 70 . 30 Initial . | . . . . . Average 7 | . 21 4 . 7 Influence Increases 303 | 5 134 86 . 78 Destroy 0b10 Robot/C 220 | . 100 60 . 60 Destroy 0b10 Robot/NC 10 | 5 5 . . . Destroy Leader 40 | . 20 10 . 10 Successful Hack 3 | . 3 . . . Destroy Structure 30 | . 6 16 . 8 Influence Decreases 303 | 5 134 86 . 78 Time Decay 293 | 5 134 86 . 68 Lost Part 10 | . . . . 10 Squads Dispatched 1 | . 1 . . . Investigation 1 | . 1 . . . Extermination . | . . . . . Reinforcement . | . . . . . Assault . | . . . . . Garrison . | . . . . . Intercept . | . . . . . Searches Triggered . | . . . . . Construction Impeded . | . . . . . Haulers Reinforced . | . . . . . Active Scanning Responses . | . . . . . Cargo Convoy Interrupts . | . . . . . Stealth | -11 -10 -10 -10 -9 --------- Run | Yrd Mat Min Exi Min Distress Signals . | . . . . . Communications Jammed . | . . . . . Distress Signals . | . . . . . Times Spotted 11 | . 5 3 . 3 Peak Tracking Total 3 | . 3 1 . 3 Tactical Retreats . | . . . . . Traps | -11 -10 -10 -10 -9 ------- Run | Yrd Mat Min Exi Min Traps Triggered 1 | . 1 . . . Indirectly . | . . . . . Trap Hack Attempts . | . . . . . Triggered . | . . . . . Disarmed . | . . . . . Reprogrammed . | . . . . . Reused . | . . . . . Traps Extracted . | . . . . . Installed . | . . . . . Triggered . | . . . . . Machines | -11 -10 -10 -10 -9 ---------- Run | Yrd Mat Min Exi Min Machines Disabled . | . . . . . Max in Single Turn . | . . . . . Machines Repaired . | . . . . . Machines Dismantled . | . . . . . Machines Sabotaged . | . . . . . Overloaded Fab Kills . | . . . . . Hacking | -11 -10 -10 -10 -9 --------- Run | Yrd Mat Min Exi Min Machines Accessed 4 | . 1 . 3 . Terminals . | . . . . . Fabricators . | . . . . . Repair Stations 1 | . 1 . . . Recycling Units . | . . . . . Scanalyzers . | . . . . . Garrison Access . | . . . . . Total Hacks 35 | . 4 . 31 . Successful 33 | . 2 . 31 . Failed 2 | . 2 . . . Catastrophic . | . . . . . Database Lockouts . | . . . . . Manual 1 | . . . 1 . Terminals . | . . . . . Fabricators . | . . . . . Repair Stations 4 | . 4 . . . Recycling Units . | . . . . . Scanalyzers . | . . . . . Garrison Access . | . . . . . Terminal Hacks 31 | . . . 31 . Record 30 | . . . 30 . Proto ID Catalog 1 | . . . 1 . Fabricator Hacks . | . . . . . Repair Station Hacks 2 | . 2 . . . Scan Component 1 | . 1 . . . Repair 1 | . 1 . . . Recycling Unit Hacks . | . . . . . Scanalyzer . | . . . . . Garrison Access Hacks . | . . . . . Unauthorized Hacks . | . . . . . Terminals . | . . . . . Fabricators . | . . . . . Repair Stations . | . . . . . Recycling Units . | . . . . . Scanalyzers . | . . . . . Garrison Access . | . . . . . Data Cores Recovered . | . . . . . Used . | . . . . . Hacking Detections . | . . . . . Full Trace Events . | . . . . . Feedback Events . | . . . . . Feedback Blocked . | . . . . . Robot Schematics Acquired . | . . . . . Robots Built . | . . . . . Authchips . | . . . . . Time . | . . . . . Total Robot Build Rating . | . . . . . Part Schematics Acquired . | . . . . . Parts Built . | . . . . . Authchips . | . . . . . Time . | . . . . . Total Part Build Rating . | . . . . . Parts Repaired 1 | . 1 . . . Time 26 | . 26 . . . Parts Recycled . | . . . . . Recycled Matter . | . . . . . Retrieved Matter . | . . . . . Retrieved Components . | . . . . . Parts Scanalyzed . | . . . . . Part Schematics Acquired . | . . . . . Parts Damaged . | . . . . . Bothacking | -11 -10 -10 -10 -9 ------------ Run | Yrd Mat Min Exi Min Used RIF Installer . | . . . . . Robots Hacked . | . . . . . Non-combat . | . . . . . Combat . | . . . . . Robot Hacks Applied . | . . . . . Relay Couplers Released . | . . . . . Fabnet Peak Effective % . | . . . . . Robots Rewired . | . . . . . Allies Hacked . | . . . . . Hacks Repelled . | . . . . . Allies | -11 -10 -10 -10 -9 -------- Run | Yrd Mat Min Exi Min Total Allies . | . . . . . Largest Group . | . . . . . Highest-Rated Group . | . . . . . Highest-Rated Ally . | . . . . . Total Orders . | . . . . . Ally Attacks . | . . . . . Total Damage . | . . . . . Kills . | . . . . . Allies Corrupted . | . . . . . Allies Melted . | . . . . . Intel | -11 -10 -10 -10 -9 ------- Run | Yrd Mat Min Exi Min Active Infowar (turns) 2946 | 51 354 1202 1339 . Terrain 2598 | 51 154 1054 1339 . ECM 348 | . 200 148 . . Robot Analysis Total . | . . . . . Derelict Logs Recovered . | . . . . . Drone Launches . | . . . . . Drone Recoveries . | . . . . . Exploration | -11 -10 -10 -10 -9 ------------- Run | Yrd Mat Min Exi Min Turns Passed 3348 | 157 354 1202 1379 256 Spaces Moved 1499 | 76 131 447 774 71 Core 17 | 17 . . . . Treads 1482 | 59 131 447 774 71 Legs . | . . . . . Wheels . | . . . . . Hover . | . . . . . Flight . | . . . . . Fastest Speed 50 | 50 160 240 160 160 Average Speed 193 | 149 193 240 173 160 Slowest Speed 240 | 160 240 240 240 160 Overloaded Moves . | . . . . . Propulsion Burnouts . | . . . . . Robots Hopped . | . . . . . Potential Cave-ins 1 | . . . . 1 Cave-ins Triggered 1 | . . . . 1 Exploration Rate (%) 35 | 6 17 52 92 11 Regions Visited 4 Branch Regions 3 Pre-discovered Areas 1 | . . . 1 . Known Exits Taken . | . . . . . Unknown Exits Taken 4 | 1 1 1 1 . Scrap Searched 3 | . . 2 . 1 Spaces Dug 38 | . 6 19 . 13 Terrain Destroyed 39 | . 6 20 . 13 Melee . | . . . . . Projectile 39 | . 6 20 . 13 AOE . | . . . . . Terrain Rammed . | . . . . . Walls Destroyed . | . . . . . Machines Disabled . | . . . . . Actions | -11 -10 -10 -10 -9 --------- Run | Yrd Mat Min Exi Min Total 1753 | 111 188 507 816 131 Wait 50 | 5 18 11 3 13 Move 1495 | 75 130 446 773 71 Hop . | . . . . . Pick Up 38 | 10 5 8 15 . Fast Attach 9 | 3 1 . 5 . Attach 12 | 4 1 1 3 3 Detach 4 | . 2 . 2 . Swap 32 | 2 10 13 1 6 Drop 20 | 3 1 5 10 1 Fire 79 | 4 18 22 . 35 Melee . | . . . . . Ram . | . . . . . Kick . | . . . . . Crush 10 | 5 2 1 . 2 Escape Stasis . | . . . . . Rewire 4 | . . . 4 . Trap . | . . . . . Miscellaneous . | . . . . . Route ------- -11/Scrapyard -10/Materials -10/Mines (discovered 2 exits: *Exi / [*Sub]) -10/Exiles (discovered 2 exits: *Min x2) -9/Mines History --------- Turn | Location | Event 33 | -11/Scrapyard | Discovered new exit (range 15) 158 | -11/Scrapyard | Entered Materials 249 | -10/Materials | Discovered new exit (range 6) 309 | -10/Materials | Build established: Mutant 457 | -10/Materials | Repaired Ion Engine 512 | -10/Materials | Entered Mines 760 | -10/Mines | Joined a pair of Derelicts in attacking an 0b10 outpost 911 | -10/Mines | Discovered new exit (range 10) 1697 | -10/Mines | Deemed a non-threat by the Exiles lab entrance 1699 | -10/Mines | Discovered new exit (range 5) 1714 | -10/Mines | Entered Exiles 1772 | -10/Exiles | Discovered new exit (range 15) 1808 | -10/Exiles | Met 8R-AWN 1868 | -10/Exiles | Met EX-HEX 2124 | -10/Exiles | Met EX-DEC 2174 | -10/Exiles | Visited The Gauntlet 2394 | -10/Exiles | Learned location of Zion (-6) 2594 | -10/Exiles | Discovered new exit (range 14) 2742 | -10/Exiles | Met EX-BIN 2778 | -10/Exiles | Aligned with FarCom system 2780 | -10/Exiles | Given EX-Vault access code 2869 | -10/Exiles | Opened EX-Vault 2888 | -10/Exiles | Found AWS/Gauss 2895 | -10/Exiles | Found YOLO Cannon 2898 | -10/Exiles | Found Firepult 2931 | -10/Exiles | Warned to stay clear of 0b10 Research branches 3093 | -10/Exiles | Entered Mines 3105 | -9/Mines | Met a Derelict bent on vengeance 3142 | -9/Mines | Core integrity fell below 50% 3350 | -9/Mines | Crushed by falling debris 3350 | -9/Mines | Smashed by cave-in Last Messages --------------- 03171_ Acquired 46 matter. 03181_ Connecting with Terminal... 03181_ Current location identified: Mines 03214_ Searching scrap... 03214_ Found Imp. Light Cannon. 03214_ Found Med. Matter Pod. 03214_ Found Med. Storage Unit. 03214_ Found 67 Matter. 03215_ Acquired 67 matter. 03266_ U-05 Engineer builds a Wall. 03300_ Slammed into U-05 Engineer. 03304_ U-05 Engineer builds a Wall. 03306_ Slammed into U-05 Engineer. 03327_ U-05 Engineer builds a Wall. 03350_ The unstable cave ceiling collapses. 03350_ Crushed by falling debris. 03350_ Assault Rifle destroyed. 03350_ System corrupted by crushing effect (+4). 03350_ Mining Laser destroyed. 03350_ System corrupted by crushing effect (+2). Map ----- +----------------------------------------------------+ | | | | | | | | | | | | | | | | | | | | | | | | | | | | | | | ?????????????????????????????????????????????????? | | ??###????????????????????????????????????????????? | | ###T##??????????????????#########????????????????? | | #??????????????????# #????????????????? | | #??????????????????#""" #????????????????? | | [ #####??????????????#""" #????????????????? | | [= ################""" #????????????????? | | = ## ! !] #????????????????? | | ## ##############"# #????????????????? | | ## #????????????###### ####????????????????? | | ####### #????????????# @## #???????????????????? | | ??????# #????????????### ## #???????????????????? | | ??????# ??????????????# #" #???????????????????? | | ??????### ??????????????#### #???????????????????? | | ????????? ????????????????## #???????????????????? | | ?????????##????????????????# #???????????????????? | | ???????????????????????????# ???????????????????? | | ???????????????????????????###???????????????????? | | ?????????????????????????????????????????????????? | | ?????????????????????????????????????????????????? | | ?????????????????????????????????????????????????? | | ?????????????????????????????????????????????????? | | ?????????????????????????????????????????????????? | | ?????????????????????????????????????????????????? | | ?????????????????????????????????????????????????? | | ?????????????????????????????????????????????????? | | ?????????????????????????????????????????????????? | | ?????????????????????????????????????????????????? | | ?????????????????????????????????????????????????? | | ?????????????????????????????????????????????????? | | ?????????????????????????????????????????????????? | | ?????????????????????????????????????????????????? | | ?????????????????????????????????????????????????? | | ?????????????????????????????????????????????????? | | ?????????????????????????????????????????????????? | +----------------------------------------------------+ Best States ------------- Heat Dissipation 25 Energy Generation 10 Energy Capacity 250 Matter Stores 300 Matter Capacity 300 Sight Range 16 Terrain Scan Range 16 Terrain Scan Density 10 ECM Strength 1 Evasion (%) 40 Targeting Accuracy 5 Recoil Reduction 2 Item Schematics ----------------- None Robot Schematics ------------------ None Fabricated ------------ Nothing Repaired ---------- Ion Engine | 50% | -10/Materials Alien Tech Used ----------------- None Achievements -------------- None Challenges ------------ None Game ------ Seed EnergyEncryptedPick Manual? 0 Play Time 00:35:24 Cumulative 5.1 hours Start 2025.05.14 @ 12:11:43 End 2025.05.14 @ 12:43:41 Sessions 1 Manual Loads 0 Difficulty Rogue Special Mode None Game No. 7 Rogue 7 Adventurer 0 Explorer 0 Win Type - Total 0 Types 0/0/0/0/0/0/0/0/0/0 Lore% 8 Gallery% 7 Achievement% 12 Wizard Run 0 Options --------- Layout 1 ASCII 0 Keyboard 0 Movement Numpad Keybinds 0 Fullscreen 1 Font 32/SmallcapsGlow Map View 50x35 Zoom Use 0% Tactical HUD 1 Map Filters NONE Filters NONE Steam 1 RUN: 38cf73ea-bb00-48b6-911c-6b7cd4fc78d0